fUSD/lending_fUSD_20240630
["ID","MTS","AMOUNT","RATE_DAILY","PERIOD"]
[330707242,1719718252745,-510.82233285,0.000226,2]
[330707243,1719718252754,-143.19766715,0.000226,10]
[330707244,1719718252846,-150.0,0.00014848,2]
[330707245,1719718252856,-250.0,0.00015396,2]
[330707246,1719718252865,-384.50318454,0.0001578,3]
[330707247,1719718252877,-115.49681546,0.0001578,3]
[330707248,1719718252887,-500.0,0.00015889,3]
[330707249,1719718252897,-433.18449794,0.00015944,2]
[330707250,1719718252906,-500.0,0.00015999,3]
[330707251,1719718252916,-200.2225765,0.00018,2]
[330707252,1719718252930,-200.2225765,0.00018,2]
[330707253,1719718252939,-200.2225765,0.00018,2]
[330707254,1719718252948,-200.2225765,0.00018,2]
[330707255,1719718252957,-200.2225765,0.00018,2]
[330707256,1719718252968,-200.2225765,0.00018,2]
[330707257,1719718252978,-200.2225765,0.00018,2]
[330707258,1719718252988,-200.2225765,0.00018,2]
[330707259,1719718252998,-924.80233285,0.000226,10]
[330707260,1719718253007,-500.0,0.000226,8]
[330707261,1719718253018,-3202.06787088,0.00022606,2]
[330707262,1719718253027,-156.41998447,0.00022607,2]
[330707263,1719718253036,-254.49669579,0.00022607,2]
[330707264,1719718253046,-467.4208706,0.00022609,2]
[330707265,1719718253055,-500.09136863,0.00022609,2]
[330707266,1719718253066,-166.1672785,0.00022609,2]
[330707267,1719718253075,-216.84771333,0.00022609,2]
[330707268,1719718253084,-179.26039167,0.00022613,2]
[330707269,1719718253094,-237.95505599,0.00022619,2]
[330707270,1719718253103,-150.0,0.0002262,2]
[330707271,1719718253222,-166.66666666,0.00022623,2]
[330707272,1719718253231,-1810.69634678,0.00022624,2]
[330707273,1719718253242,-166.66666666,0.00022632,2]
[330707274,1719718253252,-686.37788793,0.00022633,2]
[330707275,1719718253261,-988.51473047,0.00022636,2]
[330707276,1719718253271,-154.81279975,0.00022648,2]
[330707277,1719718253280,-630.26577554,0.00022655,2]
[330707278,1719718253292,-378.63422446,0.00022655,2]
[330707279,1719718253302,-105.24296737,0.00022655,2]
[330707280,1719718254789,-903.65703263,0.00022655,2]
[330707281,1719718254799,-2370.41054463,0.00022656,2]
[330707282,1719718254811,-2849.692,0.00022656,2]
[330707283,1719718254823,-3575.3511807,0.00022656,2]
[330707284,1719718254834,-1825.79,0.00022656,2]
[330707285,1719718254846,-7677.90111146,0.00022656,2]
[330707286,1719718254855,-151.02404253,0.00022659,2]
[330707287,1719718254865,-204.82962829,0.00022665,2]
[330707288,1719718254875,-467.4208706,0.00022665,2]
[330707289,1719718254884,-1810.69634678,0.00022669,2]
[330707290,1719718254894,-161.14110778,0.00022686,2]
[330707291,1719718254904,-2639.2245825,0.000227,7]
[330707292,1719718254916,-500.0,0.000227,8]
[330707293,1719718254929,-1536.54380444,0.00022703,2]
[330707294,1719718254939,-150.0,0.00022711,2]
[330707295,1719718254949,-5150.32068046,0.00022722,2]
[330707296,1719718254960,-5150.32068046,0.00022726,2]
[330707297,1719718254970,-301.45406569,0.0002273,2]
[330707298,1719718254983,-2900.61380519,0.0002273,2]
[330707299,1719718254994,-988.51473047,0.00022731,2]
[330707300,1719718255007,-254.49669579,0.00022732,2]
[330707301,1719718255017,-467.4208706,0.00022739,2]
[330707302,1719718255027,-5150.32068046,0.00022752,2]
[330707303,1719718255037,-254.49669579,0.00022754,2]
[330707304,1719718255046,-269.73930495,0.00022763,2]
[330707305,1719718255055,-106.37639042,0.00022765,2]
[330707306,1719718255068,-44.3157538,0.00022765,2]
[330707307,1719718255077,-603.1942462,0.00022779,2]
[330707308,1719718255089,-4547.12643426,0.00022779,2]
[330707309,1719718255101,-154.81279975,0.00022795,2]
[330707310,1719718255110,-5000.0,0.00022796,2]
[330707311,1719718255120,-2000.0,0.000228,2]
[330707312,1719718255129,-2000.0,0.000228,2]
[330707313,1719718255139,-2000.0,0.000228,2]
[330707314,1719718255148,-2000.0,0.000228,2]
[330707315,1719718255157,-2000.0,0.000228,2]
[330707316,1719718255167,-2000.0,0.000228,2]
[330707317,1719718255176,-2051.9325,0.000228,2]
[330707318,1719718255186,-2000.0,0.000228,2]
[330707319,1719718255195,-2000.0,0.000228,2]
[330707320,1719718255205,-20224.0,0.000228,2]
[330707321,1719718255215,-2000.0,0.000228,2]
[330707322,1719718255225,-569.03335545,0.000228,2]
[330707323,1719718255234,-1084.0,0.000228,8]
[330707324,1719718255244,-467.4208706,0.00022801,2]
[330707325,1719718255254,-161.14110778,0.00022813,2]
[330707326,1719718255263,-23073.05007393,0.00022815,2]
[330707327,1719718255273,-155.77732901,0.00022821,2]
[330707328,1719718255282,-166.66666666,0.00022825,2]
[330707329,1719718255293,-154.81279975,0.00022828,2]
[330707330,1719718255302,-169.30618064,0.00022831,2]
[330707331,1719718255311,-1844.7796169,0.00022837,2]
[330707332,1719718255321,-197.0,0.0002284,5]
[330707333,1719718255331,-18112.37505587,0.00022842,2]
[330707334,1719718255340,-988.51473047,0.0002286,2]
[330707335,1719718255350,-500.09136863,0.00022861,2]
[330707336,1719718255360,-166.1672785,0.00022861,2]
[330707337,1719718255370,-216.84771333,0.00022861,2]
[330707338,1719718255380,-155.77732901,0.00022861,2]
[330707339,1719718255390,-254.49669579,0.00022868,2]
[330707340,1719718255400,-378.99078211,0.0002287,2]
[330707341,1719718255657,-166.66666666,0.00022873,2]
[330707342,1719718255672,-152.62131631,0.00022881,2]
[330707343,1719718255681,-3202.06787088,0.00022883,2]
[330707344,1719718255691,-1844.7796169,0.00022889,2]
[330707345,1719718255700,-408.5105072,0.0002289,7]
[330707346,1719718255710,-18299.14483679,0.0002289,2]
[330707347,1719718255719,-177.56401126,0.0002289,2]
[330707348,1719718255729,-65820.66235452,0.0002289,2]
[330707349,1719718255738,-320.66474997,0.0002289,2]
[330707350,1719718255748,-161.50112924,0.0002289,2]
[330707351,1719718255758,-2909.22298394,0.00022893,2]
[330707352,1719718255767,-4010.18433169,0.000229,2]
[330707353,1719718255780,-4021.91980678,0.000229,2]
[330707354,1719718255802,-200.2225765,0.00018,2]
[330707355,1719718255811,-193.54621021,0.00018,2]
[330707356,1719718255823,-6.67636629,0.00018,2]
[330707357,1719718255833,-874.20363371,0.000229,2]
[330707358,1719718255844,-2067.64040928,0.000229,2]
[330707359,1719718255856,-854.0,0.000229,2]
[330707360,1719718255868,-377.28,0.000229,2]
[330707361,1719718255880,-670.5,0.000229,2]
[330707362,1719718255891,-3728.44750531,0.000229,2]
[330707363,1719718255903,-306.21779093,0.000229,2]
[330707364,1719718255915,-526.66162884,0.000229,2]
[330707365,1719718255929,-1652.40358811,0.000229,2]
[330707366,1719718255940,-580.23124133,0.000229,2]
[330707367,1719718255952,-330.31006402,0.000229,2]
[330707368,1719718255963,-155.77732901,0.000229,2]
[330707369,1719718255973,-240.15837957,0.00022902,2]
[330707370,1719718255983,-119.68431998,0.00022906,2]
[330707371,1719718255996,-35.12847977,0.00022906,2]
[330707372,1719718256006,-489.22282668,0.00022916,2]
[330707373,1719718256017,-197.15506125,0.00022916,2]
[330707374,1719718256027,-467.4208706,0.00022923,2]
[330707375,1719718256037,-231.71874565,0.00022931,2]
[330707376,1719718256048,-18720.32612932,0.00022931,2]
[330707377,1719718256060,-2550.53219726,0.00022931,2]
[330707378,1719718256072,-905.72771757,0.00022931,2]
[330707391,1719718396536,204.023404,0.00025384,120]
[330707394,1719718435641,4012.41902839,9e-05,2]
[330707395,1719718451672,155.00619628,0.00011,2]
[330707396,1719718471014,1608.85363999,6.94e-05,2]
[330707402,1719718649690,302.3204216,8.412e-05,2]
[330707403,1719718740294,306.74165946,0.00010196,2]
[330707404,1719718801686,158.96341014,0.00010196,2]
[330707409,1719718991114,686.86,0.00010981,2]
[330707417,1719719151292,638.17480602,0.00011098,2]
[330707418,1719719178896,532.91398684,0.00011098,2]
[330707419,1719719192327,483.77544876,0.00011098,2]
[330707420,1719719210870,566.13257647,0.00011098,2]
[330707421,1719719213141,-199.82308136,0.00011199,2]
[330707428,1719719433263,-18466.90798912,0.00011199,2]
[330707430,1719719433274,-11207.15710867,0.000112,2]
[330707432,1719719433284,-150.0,0.00012027,2]
[330707433,1719719433294,-4526.07867112,0.00012047,2]
[330707434,1719719433304,-17514.03785882,0.00012622,2]
[330707435,1719719433316,-704.59072656,0.00012622,2]
[330707436,1719719433331,-694.96141462,0.00012622,2]
[330707437,1719719433341,-334.67549146,0.00012696,2]
[330707438,1719719433390,-335.08950845,0.00012696,2]
[330707439,1719719433402,-276.52,0.00012696,2]
[330707440,1719719433453,-394.07500009,0.00012696,2]
[330707441,1719719433463,-37.92500391,0.0001278,2]
[330707442,1719719433474,-455.85444,0.0001278,2]
[330707443,1719719433488,-506.22055609,0.0001278,2]
[330707444,1719719433497,-131.21243145,0.00012797,2]
[330707445,1719719433509,-13919.45188348,0.00012797,2]
[330707446,1719719433525,-2901.4,0.00012797,2]
[330707447,1719719433591,-648.0,0.00012797,2]
[330707448,1719719433603,-6299.93568507,0.00012797,2]
[330707450,1719719433612,-567.17426278,0.00012815,2]
[330707453,1719719438846,-155.0,0.00012273,2]
[330707454,1719719438856,-495.84765446,0.00012815,2]
[330707455,1719719438868,-44.72808276,0.00012815,2]
[330707456,1719719438878,-250.0,0.00012874,2]
[330707457,1719719438889,-250.0,0.00012874,2]
[330707458,1719719438899,-156.2,0.00012876,2]
[330707459,1719719438908,-260.16,0.00012904,2]
[330707460,1719719438918,-1487.33574473,0.00013128,2]
[330707461,1719719438930,-711.52149362,0.00013128,2]
[330707462,1719719438939,-686.86,0.00013244,2]
[330707463,1719719438949,-163.63235046,0.00013472,2]
[330707464,1719719438959,-393.21089498,0.00013472,2]
[330707465,1719719438968,-153.06326567,0.00013488,2]
[330707466,1719719438977,-339.34174154,0.00013516,2]
[330707467,1719719438986,-519.86065789,0.00013516,2]
[330707468,1719719438995,-368.47136735,0.00013543,2]
[330707469,1719719439004,-156.2,0.00013547,2]
[330707470,1719719439015,-13118.85223943,0.00013574,2]
[330707471,1719719439025,-251.0,0.00013584,2]
[330707472,1719719439035,-9048.704,0.0001369,2]
[330707473,1719719439045,-724.4736,0.0001369,2]
[330707474,1719719439055,-3993.02537886,0.0001369,2]
[330707475,1719719439094,-614.35310424,0.00013574,2]
[330707476,1719719439104,-805.34482114,0.0001369,2]
[330707477,1719719439114,-8.99602432,0.00013699,2]
[330707478,1719719439126,-161.68397568,0.00013699,2]
[330707479,1719719439136,-725.38,0.00013699,2]
[330707480,1719719439146,-233.68,0.00013699,2]
[330707481,1719719439156,-1145.87,0.00013699,2]
[330707482,1719719439165,-200.0,0.00013699,2]
[330707483,1719719439175,-296.51463104,0.00013736,2]
[330707484,1719719439185,-500.0,0.00013789,3]
[330707485,1719719439194,-500.0,0.00013789,3]
[330707486,1719719439204,-500.0,0.00013789,3]
[330707487,1719719439214,-500.0,0.00013789,3]
[330707488,1719719439223,-500.0,0.00013789,3]
[330707489,1719719439232,-500.0,0.00013789,3]
[330707490,1719719439242,-4429.77534436,0.00013789,3]
[330707491,1719719439266,-807.08544,0.00013789,3]
[330707492,1719719439278,-407.50921564,0.00013789,3]
[330707493,1719719439287,-500.0,0.00013789,3]
[330707494,1719719439297,-500.0,0.00013789,3]
[330707495,1719719439307,-614.71,0.00013789,3]
[330707496,1719719439318,-500.0,0.00013789,3]
[330707497,1719719439331,-2432.70876849,0.00013799,2]
[330707498,1719719439341,-3336.24154359,0.000138,2]
[330707499,1719719439353,-25072.30740621,0.000138,2]
[330707500,1719719439363,-500.0,0.00013816,3]
[330707501,1719719439374,-500.0,0.00013816,3]
[330707503,1719719439383,-508.55012471,0.00013816,3]
[330707505,1719719439394,-504.60527452,0.00013816,3]
[330707507,1719719439404,-500.0,0.00013816,3]
[330707509,1719719439417,-500.0,0.00013816,3]
[330707511,1719719439428,-500.0,0.00013816,3]
[330707513,1719719439438,-500.0,0.00013816,3]
[330707515,1719719439447,-509.12552153,0.00013816,3]
[330707517,1719719439457,-560.3,0.00013816,3]
[330707519,1719719439467,-500.0,0.00013816,3]
[330707521,1719719439476,-500.0,0.00013816,3]
[330707523,1719719439486,-500.0,0.00013816,3]
[330707525,1719719439495,-500.0,0.00013816,3]
[330707527,1719719439504,-508.07806796,0.00013816,3]
[330707529,1719719439514,-500.0,0.00013816,3]
[330707531,1719719439524,-496.67106187,0.00013816,3]
[330707533,1719719439534,-507.69817141,0.00013816,3]
[330707535,1719719439543,-508.8689782,0.00013816,3]
[330707537,1719719439552,-500.0,0.00013816,3]
[330707539,1719719439562,-506.81860417,0.00013816,3]
[330707541,1719719439571,-510.26959603,0.00013816,3]
[330707543,1719719439581,-504.5586789,0.00013816,3]
[330707545,1719719439590,-500.0,0.00013816,3]
[330707547,1719719439600,-500.0,0.00013816,3]
[330707549,1719719439609,-500.0,0.00013816,3]
[330707551,1719719439618,-500.0,0.00013816,3]
[330707553,1719719439628,-508.90959194,0.00013816,3]
[330707555,1719719439637,-500.0,0.00013816,3]
[330707557,1719719439647,-500.0,0.00013816,3]
[330707559,1719719439656,-500.0,0.00013816,2]
[330707561,1719719439666,-500.0,0.00013816,3]
[330707563,1719719439676,-500.0,0.00013816,3]
[330707565,1719719439685,-500.0,0.00013816,3]
[330707567,1719719439695,-512.91323343,0.00013816,3]
[330707569,1719719439704,-507.21433059,0.00013816,3]
[330707571,1719719439714,-508.19963254,0.00013816,3]
[330707573,1719719439724,-509.08225958,0.00013816,3]
[330707575,1719719439733,-508.40714595,0.00013816,3]
[330707577,1719719439743,-500.0,0.00013816,3]
[330707579,1719719439753,-500.0,0.00013816,3]
[330707581,1719719439763,-549.29829486,0.00013816,3]
[330707583,1719719439773,-500.0,0.00013816,3]
[330707585,1719719439782,-500.0,0.00013816,3]
[330707587,1719719439792,-503.0032335,0.00013816,3]
[330707589,1719719439802,-508.79766829,0.00013816,3]
[330707591,1719719439811,-500.0,0.00013816,3]
[330707593,1719719439821,-500.0,0.00013816,3]
[330707595,1719719439831,-500.0,0.00013816,3]
[330707597,1719719439841,-500.0,0.00013816,3]
[330707599,1719719439851,-500.0,0.00013816,3]
[330707601,1719719439861,-500.0,0.00013816,3]
[330707603,1719719439872,-500.0,0.00013816,3]
[330707605,1719719439882,-500.0,0.00013816,3]
[330707607,1719719439893,-500.0,0.00013816,3]
[330707609,1719719439902,-500.0,0.00013816,3]
[330707611,1719719439913,-500.0,0.00013816,3]
[330707613,1719719439923,-675.43,0.00013816,3]
[330707615,1719719439932,-500.0,0.00013816,3]
[330707617,1719719439942,-500.0,0.00013816,3]
[330707619,1719719439951,-1793.13,0.00013816,3]
[330707621,1719719439961,-500.0,0.00013816,3]
[330707623,1719719439971,-500.0,0.00013816,3]
[330707625,1719719439981,-510.76,0.00013816,3]
[330707627,1719719439991,-500.0,0.00013816,3]
[330707629,1719719440000,-506.04378983,0.00013816,3]
[330707631,1719719440010,-504.45739639,0.00013816,3]
[330707633,1719719440020,-500.0,0.00013816,3]
[330707635,1719719440030,-509.12688298,0.00013816,3]
[330707637,1719719440040,-500.0,0.00013816,3]
[330707639,1719719440050,-505.84391463,0.00013816,3]
[330707642,1719719440059,-506.143098,0.00013816,3]
[330707644,1719719440069,-501.63588829,0.00013816,3]
[330707646,1719719440078,-500.0,0.00013816,3]
[330707648,1719719440088,-1265.03396037,0.00013849,2]
[330707650,1719719440098,-1133.92751376,0.00013849,2]
[330707652,1719719440107,-1000.0,0.00013899,2]
[330707654,1719719440116,-1576.1205,0.00013899,2]
[330707656,1719719440126,-500.0,0.00013899,3]
[330707658,1719719440135,-500.0,0.00013899,3]
[330707660,1719719440144,-500.0,0.00013899,3]
[330707663,1719719440154,-500.0,0.00013899,3]
[330707664,1719719440163,-500.0,0.00013899,3]
[330707667,1719719440172,-500.0,0.00013899,3]
[330707668,1719719440182,-5644.37,0.00013899,3]
[330707671,1719719440191,-180.6560251,0.00013899,2]
[330707673,1719719440200,-6513.3587,0.000139,2]
[330707675,1719719440209,-7500.0,0.000139,2]
[330707677,1719719440219,-685.32014552,0.00013909,2]
[330707679,1719719440228,-320.66474999,0.00013909,2]
[330707681,1719719440238,-349.94302213,0.00013909,2]
[330707682,1719719440247,-500.0,0.00013926,3]
[330707684,1719719440256,-500.0,0.00013926,3]
[330707686,1719719440265,-500.0,0.00013926,3]
[330707688,1719719440274,-541.58832084,0.00013926,3]
[330707690,1719719440284,-500.0,0.00013926,3]
[330707692,1719719440293,-362.13450624,0.00013926,3]
[330707694,1719719440302,-500.0,0.00013926,3]
[330707696,1719719440311,-280.51593835,0.00013926,3]
[330707698,1719719440321,-500.0,0.00013926,3]
[330707700,1719719440335,-500.0,0.00013926,3]
[330707702,1719719440344,-500.0,0.00013926,3]
[330707704,1719719440354,-500.0,0.00013926,3]
[330707706,1719719440363,-500.0,0.00013926,3]
[330707708,1719719440372,-500.0,0.00013926,3]
[330707710,1719719440382,-500.0,0.00013926,3]
[330707712,1719719440392,-500.0,0.00013926,3]
[330707714,1719719440402,-500.0,0.00013926,3]
[330707716,1719719440413,-500.0,0.00013926,3]
[330707718,1719719440423,-500.0,0.00013926,3]
[330707720,1719719440432,-500.0,0.00013926,3]
[330707722,1719719440441,-500.0,0.00013926,3]
[330707724,1719719440450,-675.43,0.00013926,3]
[330707726,1719719440459,-500.0,0.00013926,3]
[330707728,1719719440468,-500.0,0.00013926,3]
[330707729,1719719440478,-1793.13,0.00013926,3]
[330707730,1719719440486,-500.0,0.00013926,3]
[330707731,1719719440497,-500.0,0.00013926,3]
[330707732,1719719440506,-510.76,0.00013926,3]
[330707733,1719719440517,-500.0,0.00013926,3]
[330707734,1719719440527,-175.48569036,0.0001399,2]
[330707735,1719719440537,-175.48569036,0.0001399,2]
[330707736,1719719440546,-500.0,0.00013998,3]
[330707737,1719719440556,-548.6968627,0.00013998,3]
[330707738,1719719440565,-500.0,0.00013998,3]
[330707739,1719719440574,-500.0,0.00013998,3]
[330707741,1719719440583,-500.0,0.00013998,3]
[330707742,1719719440592,-500.0,0.00013998,3]
[330707744,1719719440602,-500.0,0.00013998,3]
[330707746,1719719440611,-500.0,0.00013998,3]
[330707748,1719719440620,-500.0,0.00013998,3]
[330707750,1719719440629,-500.0,0.00013998,3]
[330707752,1719719440638,-500.0,0.00013998,3]
[330707754,1719719440647,-500.0,0.00013998,3]
[330707756,1719719440656,-1162.7,0.00013998,3]
[330707758,1719719440666,-500.0,0.00013998,3]
[330707760,1719719440676,-500.0,0.00013999,3]
[330707762,1719719440686,-500.0,0.00013999,3]
[330707764,1719719440696,-500.0,0.00013999,3]
[330707766,1719719440705,-500.0,0.00013999,3]
[330707768,1719719440715,-500.0,0.00013999,3]
[330707770,1719719440724,-500.0,0.00013999,3]
[330707772,1719719440733,-500.0,0.00013999,3]
[330707775,1719719440743,-500.0,0.00013999,3]
[330707776,1719719440752,-500.0,0.00013999,3]
[330707778,1719719440761,-500.0,0.00013999,3]
[330707780,1719719440771,-500.0,0.00013999,3]
[330707782,1719719440781,-500.0,0.00013999,3]
[330707784,1719719440790,-500.0,0.00013999,3]
[330707786,1719719440799,-500.0,0.00013999,3]
[330707788,1719719440809,-500.0,0.00013999,3]
[330707791,1719719440819,-500.0,0.00013999,3]
[330707792,1719719440828,-500.0,0.00013999,3]
[330707795,1719719440837,-561.12,0.00013999,3]
[330707797,1719719440847,-245.20819908,0.00013999,3]
[330707799,1719719440856,-500.0,0.00013999,3]
[330707800,1719719440865,-500.0,0.00013999,3]
[330707803,1719719440875,-500.0,0.00013999,3]
[330707804,1719719440886,-155.73,0.00013999,3]
[330707807,1719719440896,-500.0,0.00013999,3]
[330707809,1719719440905,-524.56,0.00013999,3]
[330707810,1719719440915,-500.0,0.00013999,3]
[330707812,1719719440924,-500.0,0.00013999,3]
[330707814,1719719440933,-500.0,0.00013999,3]
[330707816,1719719440943,-500.0,0.00013999,3]
[330707818,1719719440952,-500.0,0.00013999,3]
[330707820,1719719440962,-500.0,0.00013999,3]
[330707822,1719719440971,-500.0,0.00013999,3]
[330707824,1719719440981,-397.81405925,0.00013999,3]
[330707826,1719719440990,-324.92711761,0.00013999,3]
[330707829,1719719441000,-500.0,0.00013999,3]
[330707830,1719719441009,-500.0,0.00013999,3]
[330707832,1719719441020,-40351.01304109,0.00013999,2]
[330707834,1719719441029,-500.0,0.00013999,3]
[330707836,1719719441039,-500.0,0.00013999,3]
[330707839,1719719441048,-500.0,0.00013999,3]
[330707841,1719719441058,-500.0,0.00013999,3]
[330707842,1719719441067,-500.0,0.00013999,3]
[330707844,1719719441076,-500.0,0.00013999,3]
[330707847,1719719441087,-500.0,0.00013999,3]
[330707849,1719719441096,-500.0,0.00013999,3]
[330707851,1719719441106,-544.26,0.00013999,3]
[330707853,1719719441115,-500.0,0.00013999,3]
[330707855,1719719441124,-500.0,0.00013999,3]
[330707857,1719719441133,-500.0,0.00013999,3]
[330707859,1719719441142,-500.0,0.00013999,3]
[330707861,1719719441152,-575.37,0.00013999,3]
[330707863,1719719441161,-500.0,0.00013999,3]
[330707865,1719719441170,-500.0,0.00013999,3]
[330707866,1719719441179,-500.0,0.00013999,3]
[330707869,1719719441189,-500.0,0.00013999,3]
[330707871,1719719441198,-500.0,0.00013999,3]
[330707872,1719719441207,-500.0,0.00013999,3]
[330707874,1719719441217,-500.0,0.00013999,3]
[330707876,1719719441226,-500.0,0.00013999,3]
[330707879,1719719441236,-500.0,0.00013999,3]
[330707881,1719719441245,-500.0,0.00013999,3]
[330707883,1719719441254,-500.0,0.00013999,3]
[330707885,1719719441263,-500.0,0.00013999,3]
[330707886,1719719441274,-500.0,0.00013999,3]
[330707889,1719719441283,-1629.3610437,0.00013999,2]
[330707891,1719719441292,-500.0,0.00013999,3]
[330707893,1719719441305,-500.0,0.00013999,3]
[330707895,1719719441314,-500.0,0.00013999,3]
[330707897,1719719441325,-500.0,0.00013999,3]
[330707899,1719719441338,-500.0,0.00013999,3]
[330707901,1719719441347,-500.0,0.00013999,3]
[330707903,1719719441357,-500.0,0.00013999,3]
[330707905,1719719441366,-500.0,0.00013999,3]
[330707907,1719719441377,-292.73137895,0.00013999,3]
[330707909,1719719441386,-500.0,0.00013999,3]
[330707911,1719719441395,-500.0,0.00013999,3]
[330707913,1719719441405,-500.0,0.00013999,3]
[330707915,1719719441414,-500.0,0.00013999,3]
[330707917,1719719441424,-500.0,0.00013999,3]
[330707919,1719719441434,-500.0,0.00013999,3]
[330707921,1719719441443,-500.0,0.00013999,3]
[330707923,1719719441452,-500.0,0.00013999,3]
[330707925,1719719441462,-500.0,0.00013999,3]
[330707927,1719719441470,-500.0,0.00013999,2]
[330707929,1719719441480,-500.0,0.00013999,3]
[330707931,1719719441489,-500.0,0.00013999,3]
[330707933,1719719441498,-508.33216048,0.00013999,3]
[330707935,1719719441507,-500.0,0.00013999,3]
[330707937,1719719441519,-324172.81301982,0.00014,2]
[330707960,1719719441727,-404.95355389,0.00014,2]
[330707962,1719719441738,-6516.51,0.00014,2]
[330707964,1719719441750,-6476.8,0.00014,2]
[330707967,1719719441767,-1689.05624119,0.00014,2]
[330707976,1719719441842,-1270.37297567,0.00013759,2]
[330707978,1719719441852,-160947.88599053,0.00014,2]
[330707981,1719719441867,-420.7934741,0.00014,2]
[330707984,1719719441886,-2326.50000047,0.00014,2]
[330707986,1719719441897,-534.12867188,0.00014,2]
[330707989,1719719441911,-2310.88826869,0.00014,2]
[330707991,1719719441922,-744.63634586,0.00014,2]
[330708055,1719719442603,-1995.73214942,0.00014,2]
[330708057,1719719442614,-5348.04718558,0.00014,2]
[330708221,1719719446459,-150.0,0.00012969,2]
[330708222,1719719446469,-1629.3610437,0.00013899,2]
[330708223,1719719446479,-155.56133012,0.00013999,2]
[330708224,1719719446488,-500.0,0.00013999,3]
[330708225,1719719446498,-10053.9762504,0.00014,2]
[330708226,1719719446509,-21726.01177117,0.00014,2]
[330708227,1719719446532,-375.93228978,0.00014,2]
[330708237,1719720297205,649.18,0.00011033,2]
[330708240,1719720401371,9434.775933,0.00011,2]
[330708241,1719720457498,264.51247513,0.00011199,2]
[330708242,1719720491786,160.6222066,0.00011199,2]
[330708243,1719720598495,227.04865744,0.00011199,2]
[330708244,1719720600948,482.94283217,0.00011199,2]
[330708260,1719720631670,-324.59202179,0.00012273,2]
[330708261,1719720631680,-418.68327136,0.00012302,2]
[330708262,1719720631723,-332.81024,0.00012302,2]
[330708266,1719720637497,-248.50648864,0.00012302,2]
[330708267,1719720637507,-150.0,0.00012825,2]
[330708268,1719720637516,-250.0,0.00012878,2]
[330708269,1719720637525,-3036.65,0.0001288,2]
[330708270,1719720637534,-566.64,0.00012896,2]
[330708271,1719720637544,-800.0,0.00012927,2]
[330708272,1719720637553,-250.0,0.00012936,2]
[330708273,1719720637563,-182.87,0.00012967,2]
[330708274,1719720637572,-2000.0,0.00013,2]
[330708275,1719720637581,-200.0,0.0001302,2]
[330708276,1719720637590,-181.41,0.00013189,2]
[330708277,1719720637599,-649.18,0.00013297,2]
[330708278,1719720637608,-169.9,0.00013487,2]
[330708279,1719720637617,-227.04865744,0.00013574,2]
[330708280,1719720637626,-300.0,0.00013698,2]
[330708281,1719720637635,-170.68,0.00013699,2]
[330708282,1719720637644,-5174.01,0.00013816,3]
[330708283,1719720637653,-2567.4631154,0.00013849,2]
[330708284,1719720637662,-3000.0,0.0001386,2]
[330708285,1719720637671,-3818.70109817,0.0001389,2]
[330708286,1719720637680,-3185.31110754,0.000139,2]
[330708287,1719720637689,-831.45427242,0.000139,2]
[330708288,1719720637698,-1278.9507,0.000139,2]
[330708289,1719720637712,-2189.43789165,0.000139,2]
[330708290,1719720637721,-320.66474998,0.000139,2]
[330708291,1719720637731,-175.1491,0.000139,2]
[330708292,1719720637740,-157.82981983,0.000139,2]
[330708293,1719720637750,-157.87105774,0.00013909,2]
[330708294,1719720637759,-500.0,0.00013925,3]